bitfinex/quotes_BTCUSD_20221001
["timestamp","ask_amount","ask_price","bid_price","bid_amount"]
[1664628901222,0.14611379,19283.0,19282.0,2.37225126]
[1664628902575,0.14611379,19283.0,19282.0,2.29325126]
[1664628903247,0.14611379,19283.0,19282.0,2.33630486]
[1664628904493,0.14611379,19283.0,19282.0,2.26230486]
[1664628905163,0.14611379,19283.0,19282.0,2.33630486]
[1664628906510,0.14611379,19283.0,19282.0,2.26230486]
[1664628907192,0.14611379,19283.0,19282.0,2.33630486]
[1664628908551,0.14611379,19283.0,19282.0,2.26230486]
[1664628909233,0.14611379,19283.0,19282.0,2.33630486]
[1664628909879,0.14611379,19283.0,19282.0,1.97738486]
[1664628910109,0.14611379,19283.0,19282.0,2.33630486]
[1664628910579,0.14611379,19283.0,19282.0,2.26230486]
[1664628911265,0.14611379,19283.0,19282.0,2.66739455]
[1664628912380,0.14611379,19283.0,19282.0,2.59339455]
[1664628912937,0.14611379,19283.0,19282.0,2.23447455]
[1664628913120,0.14611379,19283.0,19282.0,2.59339455]
[1664628913334,0.14611379,19283.0,19282.0,2.67239455]
[1664628914482,0.14611379,19283.0,19282.0,2.26230486]
[1664628915363,0.14611379,19283.0,19282.0,2.34130486]
[1664628915795,0.14611379,19283.0,19282.0,2.34121732]
[1664628916447,0.14611379,19283.0,19282.0,2.26221732]
[1664628917351,0.14611379,19283.0,19282.0,2.34121732]
[1664628918477,0.14611379,19283.0,19282.0,2.67613183]
[1664628919132,0.14611379,19283.0,19282.0,1.90329732]
[1664628919350,0.14611379,19283.0,19282.0,2.34121732]
[1664628920657,0.14611379,19283.0,19282.0,2.26221732]
[1664628921274,0.14611379,19283.0,19282.0,2.34121732]
[1664628922507,0.13351379,19283.0,19282.0,2.68019825]
[1664628922709,0.13351379,19283.0,19282.0,2.60119825]
[1664628922839,0.12091379,19283.0,19282.0,2.60119825]
[1664628923279,0.12091379,19283.0,19282.0,2.68019825]
[1664628924162,0.11689379,19283.0,19282.0,2.68019825]
[1664628924613,0.11689379,19283.0,19282.0,2.60119825]
[1664628925401,0.11689379,19283.0,19282.0,2.68019825]
[1664628926542,0.11689379,19283.0,19282.0,2.60119825]
[1664628926826,0.11689379,19283.0,19282.0,2.64186249]
[1664628927506,0.11689379,19283.0,19282.0,2.72086249]
[1664628927724,0.11689379,19283.0,19282.0,2.68019825]
[1664628928608,0.11689379,19283.0,19282.0,2.60119825]
[1664628929478,0.11689379,19283.0,19282.0,2.68019825]
[1664628930790,0.11689379,19283.0,19282.0,2.60119825]
[1664628931442,0.11689379,19283.0,19282.0,2.68019825]
[1664628932699,0.11689379,19283.0,19282.0,2.60119825]
[1664628933391,0.11689379,19283.0,19282.0,2.68019825]
[1664628934564,0.11689379,19283.0,19282.0,2.60119825]
[1664628935448,0.11689379,19283.0,19282.0,2.32127825]
[1664628935678,0.11689379,19283.0,19282.0,2.68019825]
[1664628936352,0.11689379,19283.0,19282.0,2.72086249]
[1664628936579,0.11689379,19283.0,19282.0,2.64186249]
[1664628937305,0.11689379,19283.0,19282.0,2.60119825]
[1664628937525,0.11571478,19283.0,19282.0,2.32127825]
[1664628937745,0.11571478,19283.0,19282.0,2.68019825]
[1664628938596,0.11571478,19283.0,19282.0,2.64186249]
[1664628939241,0.11571478,19283.0,19282.0,2.60119825]
[1664628939454,0.11571478,19283.0,19282.0,2.68019825]
[1664628940806,0.11571478,19283.0,19282.0,2.64186249]
[1664628941499,0.11571478,19283.0,19282.0,2.68019825]
[1664628941937,0.11571478,19283.0,19282.0,2.72086249]
[1664628942824,0.11571478,19283.0,19282.0,2.64186249]
[1664628943265,0.11571478,19283.0,19282.0,2.24227825]
[1664628943511,0.11571478,19283.0,19282.0,2.36194249]
[1664628943726,0.11571478,19283.0,19282.0,2.72086249]
[1664628944166,0.11571478,19283.0,19282.0,2.68019825]
[1664628944393,0.11571478,19283.0,19282.0,2.72086249]
[1664628944932,0.11571478,19283.0,19282.0,2.64186249]
[1664628945615,0.11571478,19283.0,19282.0,2.72086249]
[1664628946700,0.11571478,19283.0,19282.0,2.64186249]
[1664628947594,0.11571478,19283.0,19282.0,2.72086249]
[1664628948041,0.11571478,19283.0,19282.0,2.68019825]
[1664628948257,0.11571478,19283.0,19282.0,2.72086249]
[1664628948731,0.11571478,19283.0,19282.0,2.64186249]
[1664628948946,0.11571478,19283.0,19282.0,2.60119825]
[1664628949507,0.11571478,19283.0,19282.0,2.72086249]
[1664628949901,0.11571478,19283.0,19282.0,2.68019825]
[1664628950790,0.11571478,19283.0,19282.0,2.60119825]
[1664628951485,0.11571478,19283.0,19282.0,2.68019825]
[1664628952676,0.11571478,19283.0,19282.0,2.60119825]
[1664628953580,0.11571478,19283.0,19282.0,2.68019825]
[1664628954550,0.01054645,19285.0,19283.0,0.747856]
[1664628954764,0.129539,19286.0,19284.0,0.51173144]
[1664628955211,0.129539,19286.0,19284.0,0.56173144]
[1664628955442,0.129539,19286.0,19285.0,0.51173144]
[1664628955657,0.01015231,19286.0,19285.0,0.51173144]
[1664628955877,0.05,19286.0,19285.0,0.77113944]
[1664628957520,0.05,19286.0,19285.0,0.85013944]
[1664628957925,0.60985461,19287.0,19285.0,0.85013944]
[1664628958146,0.95318205,19287.0,19285.0,0.85013944]
[1664628958298,0.60985461,19287.0,19285.0,0.85013944]
[1664628958514,0.60985361,19287.0,19285.0,0.85013944]
[1664628958891,0.60985361,19287.0,19285.0,0.77113944]
[1664628959576,0.60985361,19287.0,19285.0,0.85013944]
[1664628960051,0.05,19286.0,19285.0,0.85013944]
[1664628960263,0.60985361,19287.0,19285.0,0.85013944]
[1664628960396,0.86985361,19287.0,19285.0,0.85013944]
[1664628960606,0.86985361,19287.0,19285.0,0.77113944]
[1664628960819,0.85950005,19287.0,19285.0,0.77113944]
[1664628961566,0.85950005,19287.0,19285.0,0.85013944]
[1664628962789,0.85950005,19287.0,19285.0,0.77113944]
[1664628963469,0.85950005,19287.0,19285.0,0.85013944]
[1664628963916,0.05,19286.0,19285.0,0.85013944]
[1664628964610,0.85950305,19287.0,19285.0,0.77113944]
[1664628965076,0.85950205,19287.0,19285.0,0.77113944]
[1664628965505,0.85950205,19287.0,19285.0,0.85013944]
[1664628966830,0.85950205,19287.0,19285.0,0.77113944]
[1664628967482,0.85950205,19287.0,19285.0,0.85013944]
[1664628967910,1.24683783,19287.0,19285.0,0.338408]
[1664628968166,1.07700105,19286.0,19285.0,0.338408]
[1664628968387,0.73367361,19286.0,19285.0,0.338408]
[1664628968615,0.73367361,19286.0,19285.0,0.259408]
[1664628969505,0.73367361,19286.0,19285.0,0.338408]
[1664628969735,1.01370293,19286.0,19285.0,0.338408]
[1664628970736,1.01370293,19286.0,19285.0,0.259408]
[1664628971692,1.01370293,19286.0,19285.0,0.338408]
[1664628972831,1.01370293,19286.0,19285.0,0.259408]
[1664628973494,1.01370293,19286.0,19285.0,0.338408]
[1664628973691,2.02605505,19287.0,19285.0,0.338408]
[1664628974504,2.03655744,19287.0,19285.0,0.338408]
[1664628974747,0.61065944,19287.0,19285.0,0.309408]
[1664628975392,0.61065944,19287.0,19285.0,0.259408]
[1664628975608,0.61065944,19287.0,19285.0,0.338408]
[1664628975842,0.05,19286.0,19285.0,0.33829288]
[1664628976266,0.99953344,19287.0,19285.0,0.33829288]
[1664628976716,0.99353344,19287.0,19285.0,0.33829288]
[1664628977085,0.99353344,19287.0,19285.0,1.01818635]
[1664628977086,0.60475044,19287.0,19285.0,1.01818635]
[1664628977416,0.47071705,19287.0,19285.0,1.20517393]
[1664628977635,0.60024705,19287.0,19285.0,1.1370119]
[1664628978775,0.60024705,19287.0,19285.0,1.0590119]
[1664628978987,0.60024705,19287.0,19285.0,1.0090119]
[1664628979526,0.60024705,19287.0,19285.0,1.0870119]
[1664628979768,0.60024705,19287.0,19285.0,1.48033934]
[1664628979994,0.60024705,19287.0,19285.0,1.1370119]
[1664628980238,0.60024705,19287.0,19285.0,1.0870119]
[1664628981040,0.60024705,19287.0,19285.0,1.0090119]
[1664628981693,0.60024705,19287.0,19285.0,1.0870119]
[1664628982657,0.60024705,19287.0,19286.0,0.35892]
[1664628982870,0.47071705,19287.0,19285.0,1.0090119]
[1664628983022,0.60024705,19287.0,19285.0,1.0090119]
[1664628983543,0.60024705,19287.0,19285.0,1.0870119]
[1664628984749,0.60024705,19287.0,19285.0,1.0590119]
[1664628985186,0.60024705,19287.0,19285.0,1.0090119]
[1664628985545,0.60024705,19287.0,19285.0,1.0870119]
[1664628985969,0.60024705,19287.0,19285.0,1.1370119]
[1664628986484,0.60024705,19287.0,19285.0,1.0870119]
[1664628986906,0.60024705,19287.0,19285.0,1.0090119]
[1664628987145,0.60024705,19287.0,19285.0,1.0590119]
[1664628987356,0.60024705,19287.0,19285.0,1.0090119]
[1664628987538,0.60024705,19287.0,19285.0,1.0870119]
[1664628988162,0.60024705,19287.0,19286.0,0.35892]
[1664628988468,0.60024705,19287.0,19285.0,1.1370119]
[1664628988893,0.60024705,19287.0,19285.0,1.0590119]
[1664628989593,0.60024705,19287.0,19285.0,1.1370119]
[1664628990799,0.60024705,19287.0,19285.0,1.1090119]
[1664628991031,0.60024705,19287.0,19285.0,1.0590119]
[1664628991687,0.60024705,19287.0,19285.0,1.1370119]
[1664628991890,0.60024705,19287.0,19285.0,1.0870119]
[1664628992112,0.60024705,19287.0,19285.0,1.1370119]
[1664628993004,0.60024705,19287.0,19285.0,1.0590119]
[1664628993645,0.60024705,19287.0,19285.0,1.1370119]
[1664628994390,0.60024705,19287.0,19285.0,1.1870119]
[1664628994846,0.60024705,19287.0,19285.0,1.1090119]
[1664628995532,0.60024705,19287.0,19285.0,1.1870119]
[1664628995743,0.60024705,19287.0,19285.0,1.1370119]
[1664628996332,0.60024705,19287.0,19285.0,1.1870119]
[1664628996580,0.60024705,19287.0,19286.0,0.35892]
[1664628996765,0.47071705,19287.0,19285.0,1.1090119]
[1664628996950,0.47071705,19287.0,19286.0,0.259408]
[1664628997165,0.47071705,19287.0,19286.0,0.129704]
[1664628997646,0.47071705,19287.0,19286.0,0.207704]
[1664628997647,0.50371705,19287.0,19286.0,0.207704]
[1664628998724,0.50371705,19287.0,19286.0,0.337408]
[1664628998941,0.26,19287.0,19286.0,1.40780658]
[1664628999152,0.26,19287.0,19286.0,1.76672658]
[1664628999367,0.26,19287.0,19286.0,1.40780658]
[1664628999549,0.26,19287.0,19286.0,1.53680658]
[1664629000896,0.26,19287.0,19286.0,1.11447914]
[1664629001043,0.26,19287.0,19286.0,1.45780658]
[1664629001468,0.26,19287.0,19286.0,1.53680658]
[1664629001908,0.26,19287.0,19286.0,1.19347914]
[1664629002148,0.26,19287.0,19286.0,1.53680658]
[1664629002585,0.26,19287.0,19286.0,1.79606158]
[1664629002813,0.26,19287.0,19286.0,1.71706158]
[1664629003480,0.26,19287.0,19286.0,1.79606158]
[1664629004174,0.26,19287.0,19286.0,1.45273414]
[1664629004887,0.26,19287.0,19286.0,1.71706158]
[1664629005718,0.26,19287.0,19286.0,1.79606158]
[1664629006759,0.26,19287.0,19286.0,1.71706158]
[1664629007479,0.26,19287.0,19286.0,2.59449158]
[1664629007480,0.25989833,19287.0,19286.0,2.59449158]
[1664629007665,0.25989833,19287.0,19286.0,2.67349158]
[1664629008708,0.25989833,19287.0,19286.0,2.31457158]
[1664629008929,0.25989833,19287.0,19286.0,2.23557158]
[1664629009728,0.25989833,19287.0,19286.0,2.31457158]
[1664629010481,0.25989833,19287.0,19286.0,2.67349158]
[1664629010676,0.25989833,19287.0,19286.0,2.31457158]
[1664629010919,0.25989833,19287.0,19286.0,2.23557158]
[1664629011370,0.25989833,19287.0,19286.0,2.59449158]
[1664629011607,0.25989833,19287.0,19286.0,2.23557158]
[1664629011824,0.25989833,19287.0,19286.0,2.31457158]
[1664629012029,0.25989833,19287.0,19286.0,2.67349158]
[1664629012242,0.25989833,19287.0,19286.0,2.31457158]
[1664629013179,0.25989833,19287.0,19286.0,2.23557158]
[1664629013408,0.25989833,19287.0,19286.0,2.59449158]
[1664629013638,0.25989833,19287.0,19286.0,2.31457158]
[1664629014098,0.25989833,19287.0,19286.0,2.67349158]
[1664629015005,0.25989833,19287.0,19286.0,2.23557158]
[1664629015237,0.25989833,19287.0,19286.0,2.59449158]
[1664629015453,0.25989833,19287.0,19286.0,2.23557158]
[1664629015738,0.25989833,19287.0,19286.0,2.31557158]
[1664629015945,0.25989833,19287.0,19286.0,2.67449158]
[1664629016177,0.25989833,19287.0,19286.0,2.31557158]
[1664629016409,0.25989833,19287.0,19286.0,2.67449158]
[1664629016845,0.25989833,19287.0,19286.0,2.31557158]
[1664629017068,0.25989833,19287.0,19286.0,2.23557158]
[1664629017320,0.25989833,19287.0,19286.0,2.59449158]
[1664629017734,0.25989833,19287.0,19286.0,2.67349158]
[1664629018649,0.25989833,19287.0,19286.0,2.31457158]
[1664629018846,0.25989833,19287.0,19286.0,2.67349158]
[1664629019092,0.25989833,19287.0,19286.0,2.23557158]
[1664629019309,0.25989833,19287.0,19286.0,2.59449158]
[1664629019743,0.25989833,19287.0,19286.0,2.67349158]
[1664629020737,0.25989833,19287.0,19286.0,2.31457158]
[1664629020989,0.25989833,19287.0,19286.0,2.59449158]
[1664629021689,0.25989833,19287.0,19286.0,2.31457158]
[1664629022409,0.25989833,19287.0,19286.0,2.67349158]
[1664629022623,0.25989833,19287.0,19286.0,2.31457158]
[1664629022771,0.25989833,19287.0,19286.0,2.67349158]
[1664629022995,0.25989833,19287.0,19286.0,2.59449158]
[1664629023806,0.25989833,19287.0,19286.0,2.31457158]
[1664629024573,0.25989833,19287.0,19286.0,2.67349158]
[1664629024782,0.25989833,19287.0,19286.0,1.97124414]
[1664629025005,0.25989833,19287.0,19286.0,1.89224414]
[1664629025224,0.25989833,19287.0,19286.0,2.59449158]
[1664629025444,0.25989833,19287.0,19286.0,2.23557158]
[1664629025877,0.25989833,19287.0,19286.0,1.97124414]
[1664629026101,0.25989833,19287.0,19286.0,2.31457158]
[1664629026968,0.25989833,19287.0,19286.0,2.23557158]
[1664629027691,0.25989833,19287.0,19286.0,2.59449158]
[1664629027897,0.25989833,19287.0,19286.0,1.79606158]
[1664629028126,0.25989833,19287.0,19286.0,1.35273414]
[1664629028354,0.25989833,19287.0,19286.0,1.23902144]
[1664629028663,0.25989833,19287.0,19286.0,0.85013944]
[1664629029119,0.25989833,19287.0,19286.0,0.77113944]
[1664629029791,0.25989833,19287.0,19286.0,0.82213944]
[1664629030254,0.25989833,19287.0,19286.0,0.87213944]
[1664629031161,0.25989833,19287.0,19286.0,0.82113944]
[1664629031807,0.25989833,19287.0,19286.0,0.89313944]
[1664629032694,0.25989833,19287.0,19286.0,1.25205944]
[1664629032908,0.25989833,19287.0,19286.0,0.94313944]
[1664629033137,0.25989833,19287.0,19286.0,0.87113944]
[1664629033701,0.25989833,19287.0,19286.0,1.79063233]
[1664629033924,0.25989833,19287.0,19286.0,1.43171233]
[1664629034140,0.25989833,19287.0,19286.0,1.56133933]
[1664629035033,0.25989833,19287.0,19286.0,1.48933933]
[1664629035695,0.25989833,19287.0,19286.0,1.56833933]
[1664629036198,0.25989833,19287.0,19286.0,2.18651433]
[1664629036434,0.25989833,19287.0,19286.0,1.33902144]
[1664629036883,0.25989833,19287.0,19286.0,1.26002144]
[1664629037095,0.25989833,19287.0,19286.0,0.87113944]
[1664629037312,0.25989833,19287.0,19286.0,0.82113944]
[1664629037536,0.25989833,19287.0,19286.0,0.74143544]
[1664629037760,0.25989833,19287.0,19286.0,0.95113944]
[1664629038885,0.25989833,19287.0,19286.0,0.87113944]
[1664629039798,0.25989833,19287.0,19286.0,0.95113944]
[1664629039953,0.25989833,19287.0,19286.0,1.31005944]
[1664629040154,0.25989833,19287.0,19286.0,1.26005944]
[1664629040403,0.25989833,19287.0,19286.0,0.77143544]
[1664629041208,0.25989833,19287.0,19286.0,0.90113944]
[1664629041613,0.25989833,19287.0,19286.0,0.87113944]
[1664629041744,0.25989833,19287.0,19286.0,0.94313944]
[1664629041969,0.25989833,19287.0,19286.0,0.89313944]
[1664629042394,0.25989833,19287.0,19286.0,1.25205944]
[1664629042609,0.25989833,19287.0,19286.0,1.30205944]
[1664629043031,0.25989833,19287.0,19286.0,0.87113944]
[1664629043848,0.25989833,19287.0,19286.0,1.47183254]
[1664629044117,0.25989833,19287.0,19286.0,1.11291254]
[1664629045206,0.25989833,19287.0,19286.0,1.39283254]
[1664629045420,0.25989833,19287.0,19286.0,1.03391254]
[1664629045856,0.25989833,19287.0,19286.0,1.11291254]
[1664629046281,0.25989833,19287.0,19286.0,1.24253954]
[1664629046481,0.25989833,19287.0,19286.0,1.07976644]
[1664629047079,0.25989833,19287.0,19286.0,1.00076644]
[1664629047705,0.25989833,19287.0,19286.0,1.07976644]
[1664629049014,0.25989833,19287.0,19286.0,1.00076644]
[1664629049917,0.25989833,19287.0,19286.0,1.07276644]
[1664629050361,0.25989833,19287.0,19286.0,1.41609388]
[1664629050613,0.25989833,19287.0,19286.0,1.30300201]
[1664629051024,0.25989833,19287.0,19286.0,1.23100201]
[1664629051151,0.25989833,19287.0,19286.0,1.49025701]
[1664629051817,0.25989833,19287.0,19286.0,1.56225701]
[1664629052139,0.25989833,19287.0,19286.0,1.90558445]
[1664629053217,0.25989833,19287.0,19286.0,1.83358445]
[1664629053865,0.25989833,19287.0,19286.0,1.91258445]
[1664629054531,0.25989833,19287.0,19286.0,1.33902144]
[1664629055115,0.25989833,19287.0,19286.0,1.26002144]
[1664629055948,0.25989833,19287.0,19286.0,1.33902144]
[1664629056184,0.25989833,19287.0,19286.0,1.68234888]
[1664629056747,0.25989833,19287.0,19286.0,1.33902144]
[1664629057153,0.25989833,19287.0,19286.0,1.26002144]
[1664629057585,0.25989833,19287.0,19286.0,1.84390335]
[1664629057814,0.25989833,19287.0,19286.0,1.91590335]
[1664629058329,0.25989833,19287.0,19286.0,1.57257591]
[1664629058545,0.25989833,19287.0,19286.0,1.91590335]
[1664629058670,0.25989833,19287.0,19286.0,1.57257591]
[1664629059124,0.25989833,19287.0,19286.0,1.33202144]
[1664629059358,0.25989833,19287.0,19286.0,1.28202144]
[1664629059576,0.25989833,19287.0,19286.0,1.02276644]
[1664629059862,0.25989833,19287.0,19286.0,1.09476644]
[1664629061078,0.25989833,19287.0,19286.0,0.95076644]
[1664629061916,0.25989833,19287.0,19286.0,1.02276644]
[1664629063178,0.25989833,19287.0,19286.0,0.95076644]
[1664629063781,0.25989833,19287.0,19286.0,1.02276644]
[1664629064842,0.25989833,19287.0,19286.0,1.07276644]
[1664629065055,0.25989833,19287.0,19286.0,1.30968644]
[1664629065266,0.25989833,19287.0,19286.0,0.95076644]
[1664629065708,0.25989833,19287.0,19286.0,0.77113944]
[1664629065918,0.25989833,19287.0,19286.0,0.89313944]
[1664629067086,0.25989833,19287.0,19286.0,0.82113944]
[1664629067766,0.25989833,19287.0,19286.0,0.95013944]
[1664629069103,0.25989833,19287.0,19286.0,0.90013944]
[1664629069319,0.25989833,19287.0,19286.0,0.82113944]
[1664629069760,0.25989833,19287.0,19286.0,0.90013944]
[1664629071121,0.25989833,19287.0,19286.0,0.82113944]
[1664629071801,0.25989833,19287.0,19286.0,0.89313944]
[1664629072229,0.25989833,19287.0,19286.0,0.94313944]
[1664629072720,0.25989833,19287.0,19286.0,0.89313944]
[1664629073159,0.25989833,19287.0,19286.0,0.82113944]
[1664629074029,0.25989833,19287.0,19286.0,0.89313944]
[1664629074492,0.25989833,19287.0,19286.0,0.94313944]
[1664629075712,0.25989833,19287.0,19286.0,0.87113944]
[1664629075933,0.25989833,19287.0,19286.0,0.95013944]
[1664629076160,0.25989833,19287.0,19286.0,1.29346688]
[1664629076589,0.25989833,19287.0,19286.0,1.30905944]
[1664629076916,0.25989833,19287.0,19286.0,0.95013944]
[1664629077138,0.25989833,19287.0,19286.0,0.87113944]
[1664629077779,0.25989833,19287.0,19286.0,0.95013944]
[1664629078294,0.25989833,19287.0,19286.0,0.90013944]
[1664629078512,0.25989833,19287.0,19286.0,0.85013944]
[1664629079117,0.25989833,19287.0,19286.0,0.77113944]
[1664629079734,0.25989833,19287.0,19286.0,0.82113944]
[1664629079944,0.25989833,19287.0,19286.0,0.90013944]
[1664629080160,0.25989833,19287.0,19286.0,0.85013944]
[1664629080614,0.25989833,19287.0,19286.0,0.90013944]
[1664629081299,0.25989833,19287.0,19286.0,0.77113944]
[1664629082029,0.25989833,19287.0,19286.0,0.90013944]
[1664629083325,0.25989833,19287.0,19286.0,0.82113944]
[1664629083631,0.25989833,19287.0,19286.0,0.77113944]
[1664629084064,0.25989833,19287.0,19286.0,0.90113944]
[1664629085778,0.25989833,19287.0,19286.0,0.82113944]
[1664629086110,0.25989833,19287.0,19286.0,0.90113944]
[1664629087252,0.25989833,19287.0,19286.0,0.82113944]
[1664629087929,0.25989833,19287.0,19286.0,0.90013944]
[1664629089276,0.25989833,19287.0,19286.0,0.82113944]
[1664629089564,0.25989833,19287.0,19286.0,1.18005944]
[1664629089790,0.25989833,19287.0,19286.0,0.77113944]
[1664629090014,0.25989833,19287.0,19286.0,0.85013944]
[1664629090453,0.25989833,19287.0,19286.0,0.90013944]
[1664629090838,0.25989833,19287.0,19286.0,1.25905944]
[1664629091229,0.25989833,19287.0,19286.0,0.82113944]
[1664629091446,0.25989833,19287.0,19286.0,0.87113944]
[1664629091885,0.25989833,19287.0,19286.0,1.29346688]
[1664629092582,0.25989833,19287.0,19286.0,0.90013944]
[1664629093163,0.25989833,19287.0,19286.0,0.82113944]
[1664629093404,0.25989833,19287.0,19286.0,1.23005944]
[1664629093832,0.25989833,19287.0,19286.0,1.21446688]
[1664629094161,0.25989833,19287.0,19286.0,0.95013944]
[1664629094388,0.25989833,19287.0,19286.0,1.07976644]
[1664629095266,0.25989833,19287.0,19286.0,1.00076644]
[1664629095996,0.25989833,19287.0,19286.0,1.07976644]
[1664629096824,0.25989833,19287.0,19286.0,1.61969706]
[1664629097335,0.25989833,19287.0,19286.0,1.54069706]
[1664629098007,0.25989833,19287.0,19286.0,1.62069706]
[1664629098233,0.25989833,19287.0,19286.0,1.42409388]
[1664629099120,0.25989833,19287.0,19286.0,1.78301388]
[1664629099336,0.25989833,19287.0,19286.0,1.34409388]
[1664629099924,0.25989833,19287.0,19286.0,1.42309388]
[1664629101139,0.25989833,19287.0,19286.0,1.78201388]
[1664629101359,0.25989833,19287.0,19286.0,1.34409388]
[1664629102020,0.25989833,19287.0,19286.0,1.07976644]
[1664629102281,0.25989833,19287.0,19286.0,1.42309388]
[1664629103393,0.25989833,19287.0,19286.0,1.34409388]
[1664629104065,0.25989833,19287.0,19286.0,1.42309388]
[1664629105482,0.25989833,19287.0,19286.0,1.34409388]
[1664629106149,0.25989833,19287.0,19286.0,1.42309388]
[1664629106388,0.25989833,19287.0,19286.0,1.78201388]
[1664629106611,0.25989833,19287.0,19286.0,1.42309388]
[1664629107538,0.25989833,19287.0,19286.0,1.34409388]
[1664629108111,0.25989833,19287.0,19286.0,1.42309388]
[1664629109195,0.25989833,19287.0,19286.0,1.34409388]
[1664629109778,0.25989833,19287.0,19286.0,1.00076644]
[1664629110152,0.25989833,19287.0,19286.0,1.42309388]
[1664629110583,0.25989833,19287.0,19286.0,1.78201388]
[1664629110941,0.25989833,19287.0,19286.0,1.42309388]
[1664629111179,0.25989833,19287.0,19286.0,1.68234888]
[1664629111451,0.25989833,19287.0,19286.0,1.60334888]
[1664629112035,0.25989833,19287.0,19286.0,1.68234888]
[1664629112262,0.25989833,19287.0,19286.0,2.04126888]
[1664629112488,0.25989833,19287.0,19286.0,2.35994823]
[1664629113353,0.25989833,19287.0,19286.0,1.92202823]
[1664629113783,0.25989833,19287.0,19286.0,2.28094823]
[1664629114226,0.25989833,19287.0,19286.0,2.87945823]
[1664629114642,0.25989833,19287.0,19286.0,2.52053823]
[1664629114856,0.25989833,19287.0,19286.0,2.87945823]
[1664629115292,0.25989833,19287.0,19286.0,2.79945823]
[1664629116172,0.25989833,19287.0,19286.0,2.87945823]
[1664629117293,0.25989833,19287.0,19286.0,2.79945823]
[1664629117704,0.25989833,19287.0,19286.0,2.44053823]
[1664629117934,0.25982895,19287.0,19286.0,2.79945823]
[1664629118172,0.25982895,19287.0,19286.0,2.87945823]
[1664629118845,0.25982895,19287.0,19286.0,2.52053823]
[1664629119304,0.25982895,19287.0,19286.0,2.87945823]
[1664629119501,0.25982895,19287.0,19286.0,2.79945823]
[1664629119740,0.25982895,19287.0,19286.0,2.44053823]
[1664629119951,0.25982895,19287.0,19286.0,2.79945823]
[1664629120124,0.25982895,19287.0,19286.0,2.52053823]
[1664629120406,0.25982895,19287.0,19286.0,2.87945823]
[1664629121517,0.25982895,19287.0,19286.0,2.79945823]
[1664629121745,0.25982895,19287.0,19286.0,2.44053823]
[1664629121950,0.25482895,19287.0,19286.0,2.79945823]
[1664629122180,0.25482895,19287.0,19286.0,2.87945823]
[1664629123545,0.25482895,19287.0,19286.0,2.79945823]
[1664629123895,0.25482895,19287.0,19286.0,2.45613079]
[1664629124107,0.25482895,19287.0,19286.0,2.53613079]
[1664629124324,0.25482895,19287.0,19286.0,2.87945823]
[1664629124556,0.21059462,19290.0,19289.0,0.06783323]
[1664629124778,1.95592751,19292.0,19289.0,1.61801075]
[1664629124779,0.129494,19292.0,19289.0,1.61801075]
[1664629125007,0.002,19293.0,19291.0,0.06783323]
[1664629125008,0.131485,19293.0,19291.0,0.06783323]
[1664629125237,0.131485,19293.0,19292.0,0.06783323]
[1664629125466,0.002,19293.0,19292.0,0.06783323]
[1664629126126,0.002,19293.0,19292.0,0.12883323]
[1664629126127,0.005,19293.0,19292.0,0.12883323]
[1664629127273,0.002,19293.0,19292.0,0.06783323]
[1664629127482,0.002,19293.0,19292.0,0.1357897]
[1664629128209,0.002,19293.0,19292.0,0.2137897]
[1664629129314,0.262,19293.0,19292.0,0.64752114]
[1664629129531,0.262,19293.0,19292.0,0.69752114]
[1664629130037,0.261,19293.0,19292.0,0.69752114]
[1664629130394,0.261,19293.0,19292.0,0.77552114]
[1664629130808,0.001,19293.0,19292.0,0.72552114]
[1664629131032,0.001,19293.0,19292.0,0.65756467]
[1664629131488,0.001,19293.0,19292.0,0.62956467]
[1664629131709,0.001,19293.0,19292.0,0.93848467]
[1664629131969,0.001,19293.0,19292.0,0.57956467]
[1664629132220,0.129478,19294.0,19292.0,0.65756467]
[1664629132455,0.129478,19294.0,19293.0,0.51173144]
[1664629132683,0.124478,19294.0,19293.0,0.57956467]
[1664629133137,0.124478,19294.0,19292.0,0.466901]
[1664629133138,0.424478,19294.0,19292.0,0.337314]
[1664629133372,0.424478,19294.0,19293.0,0.06783323]
[1664629133596,0.554051,19294.0,19292.0,0.77104544]
[1664629134299,0.254051,19294.0,19293.0,0.06783323]
[1664629134551,0.254051,19294.0,19292.0,0.84904544]
[1664629134552,0.554051,19294.0,19292.0,0.84904544]
[1664629135453,0.554051,19294.0,19292.0,0.77104544]
[1664629135668,0.254051,19294.0,19292.0,0.77104544]
[1664629136204,0.554051,19294.0,19292.0,0.84904544]
[1664629136655,0.254051,19294.0,19292.0,0.84904544]
[1664629136879,0.554051,19294.0,19292.0,0.84904544]
[1664629137595,0.554051,19294.0,19292.0,0.77104544]
[1664629138283,0.554051,19294.0,19292.0,0.84904544]
[1664629138722,0.554051,19294.0,19293.0,0.06783323]
[1664629138920,0.554051,19294.0,19292.0,0.84904544]
[1664629139380,0.554051,19294.0,19292.0,0.77104544]
[1664629139635,0.813199,19294.0,19292.0,0.77104544]
[1664629140120,0.923199,19294.0,19292.0,0.77104544]
[1664629140344,0.923199,19294.0,19292.0,0.84904544]
[1664629141455,0.923199,19294.0,19292.0,0.77104544]
[1664629142269,0.923199,19294.0,19292.0,0.84904544]
[1664629142481,1.41812813,19294.0,19292.0,0.84904544]
[1664629142700,0.60674911,19293.0,19292.0,0.207657]
[1664629142909,0.90674911,19293.0,19292.0,0.078]
[1664629143132,1.50031482,19293.0,19292.0,0.078]
[1664629143342,1.50031482,19293.0,19291.0,0.129664]
[1664629143623,0.3,19292.0,19291.0,0.64139544]
[1664629144073,0.3,19292.0,19291.0,0.51173144]
[1664629144288,0.81331001,19292.0,19291.0,0.078]
[1664629144556,1.15575541,19292.0,19291.0,0.078]
[1664629144765,0.81331001,19292.0,19291.0,0.078]
[1664629145007,1.67410441,19292.0,19291.0,0.078]
[1664629145349,1.67410441,19292.0,19290.0,0.129666]
[1664629145588,0.20495554,19291.0,19290.0,0.129666]
[1664629146281,0.20495554,19291.0,19290.0,0.208666]
[1664629146831,0.49740094,19291.0,19290.0,0.208666]
[1664629147042,1.18618294,19291.0,19290.0,0.079]
[1664629147484,1.18618294,19291.0,19289.0,0.129675]
[1664629147711,0.40312274,19290.0,19289.0,0.64140644]
[1664629148169,0.3,19290.0,19289.0,0.64140644]
[1664629148412,0.3,19290.0,19289.0,0.71940644]
[1664629148839,0.3,19290.0,19289.0,0.71929161]
[1664629149068,0.688801,19290.0,19289.0,0.078]
[1664629149779,0.688801,19290.0,19288.0,0.64140944]
[1664629150011,1.207204,19290.0,19288.0,0.64140944]
[1664629150238,1.207204,19290.0,19289.0,0.078]
[1664629150696,0.907204,19290.0,19289.0,0.078]
[1664629151599,1.207204,19290.0,19288.0,0.64140944]
[1664629152261,1.207204,19290.0,19288.0,0.72040944]
[1664629153182,1.37381105,19290.0,19288.0,0.72040944]
[1664629153648,1.37381105,19290.0,19288.0,0.64140944]